bitfinex/quotes_BTCUSD_20250303
["timestamp","ask_amount","ask_price","bid_price","bid_amount"]
[1740961578211,0.159738,93904.0,93871.0,0.05350076]
[1740961578449,0.25218523,93924.0,93871.0,0.05350076]
[1740961578450,0.159722,93913.0,93912.0,0.005]
[1740961578672,0.459722,93913.0,93912.0,0.005]
[1740961579511,0.539722,93913.0,93912.0,0.005]
[1740961579711,0.159752,93895.0,93894.0,1.5]
[1740961580558,0.159752,93895.0,93894.0,1.47399999]
[1740961580734,0.159752,93895.0,93894.0,1.48099999]
[1740961581584,0.159752,93895.0,93894.0,1.47399999]
[1740961582112,0.01096538,93925.0,93894.0,1.47399999]
[1740961582384,0.159744,93900.0,93894.0,1.47399999]
[1740961582534,0.01096538,93925.0,93894.0,1.47399999]
[1740961582535,0.31425263,93913.0,93894.0,1.47399999]
[1740961582729,0.08,93913.0,93904.0,0.159737]
[1740961582930,0.159719,93915.0,93909.0,0.159728]
[1740961583134,0.159718,93915.0,93914.0,1.5]
[1740961583742,0.159718,93915.0,93871.0,0.1277]
[1740961583743,0.159776,93881.0,93871.0,0.0456]
[1740961583952,0.0814,93897.0,93873.0,0.15979]
[1740961584305,0.0814,93907.0,93880.0,0.00033411]
[1740961584520,0.159761,93890.0,93883.0,0.159772]
[1740961584716,0.159776,93881.0,93880.0,0.00033411]
[1740961585510,0.15979,93873.0,93872.0,0.0119734]
[1740961585691,0.00012081,93881.0,93872.0,0.0119734]
[1740961585892,0.00012081,93881.0,93855.0,0.1406633]
[1740961586101,0.15978,93879.0,93866.0,0.426138]
[1740961586301,0.00012081,93881.0,93865.0,0.00499]
[1740961586505,0.00012081,93881.0,93880.0,0.159778]
[1740961586964,0.00012081,93881.0,93880.0,0.007]
[1740961587172,0.15989681,93881.0,93880.0,0.007]
[1740961588597,0.15989681,93881.0,93880.0,1.507]
[1740961590381,0.00012081,93881.0,93880.0,1.5]
[1740961590558,0.00012081,93881.0,93880.0,1.48099999]
[1740961591041,0.00012081,93881.0,93880.0,1.64077799]
[1740961592970,0.00012081,93881.0,93880.0,1.48121309]
[1740961593176,0.00012081,93881.0,93880.0,1.64099109]
[1740961593756,0.15989681,93881.0,93880.0,1.48121309]
[1740961595526,0.00012081,93881.0,93880.0,1.61499108]
[1740961595731,0.00012081,93881.0,93880.0,1.45521308]
[1740961596088,0.00012081,93881.0,93880.0,1.61499108]
[1740961597028,0.00012081,93881.0,93880.0,1.64673613]
[1740961598261,0.15989681,93881.0,93880.0,1.48695813]
[1740961598696,0.00012081,93881.0,93880.0,1.48695813]
[1740961599072,0.15989681,93881.0,93880.0,1.48695813]
[1740961600480,0.00012081,93881.0,93880.0,1.46095812]
[1740961600680,0.00012081,93881.0,93880.0,1.62073612]
[1740961600859,0.00012081,93881.0,93880.0,1.58899107]
[1740961601201,0.00012081,93881.0,93880.0,1.46110778]
[1740961601405,0.00012081,93881.0,93880.0,1.62088578]
[1740961602374,0.00012081,93881.0,93880.0,1.66838578]
[1740961603118,0.00012081,93881.0,93880.0,1.50860778]
[1740961603276,0.15989681,93881.0,93880.0,1.46110778]
[1740961603478,0.00012081,93881.0,93880.0,1.46110778]
[1740961603677,0.00012081,93881.0,93880.0,1.62088578]
[1740961604633,0.00056854,93881.0,93880.0,1.62088578]
[1740961605537,0.00056854,93881.0,93880.0,1.43510777]
[1740961605839,0.00056854,93881.0,93880.0,1.59488577]
[1740961606387,0.16034454,93881.0,93880.0,1.43510777]
[1740961606595,0.00056854,93881.0,93880.0,1.59488577]
[1740961611465,0.00056854,93881.0,93880.0,1.56888576]
[1740961611885,0.00056854,93881.0,93880.0,1.40910776]
[1740961612286,0.16034454,93881.0,93880.0,1.40910776]
[1740961613813,0.00056854,93881.0,93880.0,1.40910776]
[1740961615008,0.00056854,93881.0,93880.0,1.56888576]
[1740961615434,0.00056854,93881.0,93880.0,1.38310775]
[1740961615638,0.16034454,93881.0,93880.0,1.38310775]
[1740961615841,0.00056854,93881.0,93880.0,1.38310775]
[1740961617087,0.16034454,93881.0,93880.0,1.38310775]
[1740961617694,0.00056854,93881.0,93880.0,1.38310775]
[1740961618094,0.16034454,93881.0,93880.0,1.38310775]
[1740961618901,0.00056854,93881.0,93880.0,1.38310775]
[1740961619131,0.00056854,93881.0,93880.0,1.54288575]
[1740961619795,0.00056854,93881.0,93880.0,1.6014536]
[1740961620304,0.00056854,93881.0,93880.0,1.59068575]
[1740961620497,0.00056854,93881.0,93880.0,1.56468574]
[1740961621123,0.00056854,93881.0,93880.0,1.40490774]
[1740961621551,0.00056854,93881.0,93880.0,1.35710774]
[1740961621753,0.16034454,93881.0,93880.0,1.35710774]
[1740961622918,0.16034454,93881.0,93880.0,1.32521303]
[1740961623124,0.00056854,93881.0,93880.0,1.32521303]
[1740961623277,0.00056854,93881.0,93880.0,1.48499103]
[1740961623805,0.00056854,93881.0,93880.0,2.22571656]
[1740961624209,0.00056854,93881.0,93880.0,1.91687954]
[1740961624363,0.00056854,93881.0,93880.0,1.60599103]
[1740961624569,0.00056854,93881.0,93880.0,1.52999103]
[1740961625284,0.00156854,93881.0,93880.0,1.53699103]
[1740961625866,0.00156854,93881.0,93880.0,1.64582805]
[1740961626073,0.00156854,93881.0,93880.0,2.02262805]
[1740961628102,0.00056854,93881.0,93880.0,2.01562805]
[1740961628424,0.00056854,93881.0,93880.0,2.02262805]
[1740961628731,5.4e-07,93881.0,93880.0,2.02262805]
[1740961628995,0.00044752,93924.0,93894.0,0.0471]
[1740961629176,0.15971,93920.0,93914.0,0.159719]
[1740961629482,0.00243177,93924.0,93894.0,0.0471]
[1740961629618,0.21294,93923.0,93894.0,0.0471]
[1740961629822,0.00056851,93924.0,93894.0,0.0471]
[1740961630204,0.159711,93920.0,93918.0,1.5]
[1740961630396,0.159711,93920.0,93918.0,1.47399999]
[1740961630589,0.21294,93923.0,93918.0,1.47399999]
[1740961630590,0.159709,93921.0,93918.0,1.47399999]
[1740961630795,0.00056851,93924.0,93918.0,1.47399999]
[1740961631240,0.159705,93923.0,93918.0,1.63371299]
[1740961631455,0.159709,93921.0,93918.0,1.47399999]
[1740961631655,0.16027151,93924.0,93918.0,1.47399999]
[1740961631857,0.00056851,93924.0,93918.0,1.47399999]
[1740961632095,0.00056851,93924.0,93923.0,0.159705]
[1740961632937,0.00056851,93924.0,93923.0,0.206805]
[1740961633157,0.00056851,93924.0,93923.0,0.284905]
[1740961633381,0.00056851,93924.0,93923.0,0.484905]
[1740961634465,0.00056851,93924.0,93923.0,0.284905]
[1740961634979,0.00056851,93924.0,93923.0,0.291905]
[1740961635363,0.00056851,93924.0,93923.0,0.25890499]
[1740961635568,0.00056851,93924.0,93923.0,0.26590499]
[1740961638310,0.00056851,93924.0,93923.0,1.76590499]
[1740961639090,0.00056851,93924.0,93923.0,1.68780499]
[1740961639700,0.00056851,93924.0,93923.0,1.68801799]
[1740961640109,0.00056851,93924.0,93923.0,2.09685501]
[1740961640934,0.00056851,93924.0,93923.0,2.17215501]
[1740961641611,5.1e-07,93924.0,93923.0,2.17215501]
[1740961642247,5.1e-07,93924.0,93923.0,2.25675501]
[1740961642558,5.1e-07,93924.0,93923.0,1.68801799]
[1740961643157,0.15970351,93924.0,93923.0,1.507213]
[1740961643361,5.1e-07,93924.0,93923.0,1.507213]
[1740961643763,5.1e-07,93924.0,93923.0,1.666918]
[1740961643899,5.1e-07,93924.0,93923.0,1.507213]
[1740961644141,5.1e-07,93924.0,93923.0,1.500213]
[1740961644310,5.1e-07,93924.0,93923.0,1.659918]
[1740961644687,5.1e-07,93924.0,93923.0,1.666918]
[1740961645045,5.1e-07,93924.0,93923.0,1.89365502]
[1740961645223,5.1e-07,93924.0,93923.0,2.39365502]
[1740961645428,5.1e-07,93924.0,93923.0,2.40065502]
[1740961645831,5.1e-07,93924.0,93923.0,2.39365502]
[1740961646860,5.1e-07,93924.0,93923.0,2.41537386]
[1740961647357,5.1e-07,93924.0,93923.0,2.42237386]
[1740961647744,5.1e-07,93924.0,93923.0,2.41537386]
[1740961648147,5.1e-07,93924.0,93923.0,2.42237386]
[1740961652048,0.00044782,93924.0,93923.0,2.42237386]
[1740961652206,8.2e-07,93924.0,93923.0,2.42237386]
[1740961652423,0.005,93967.0,93923.0,2.42237386]
[1740961652424,0.005,93967.0,93955.0,0.15965]
[1740961652643,0.005,93967.0,93955.0,0.76848702]
[1740961652644,0.0001211,93956.0,93955.0,0.76848702]
[1740961652843,1e-07,93956.0,93955.0,0.76848702]
[1740961653049,1e-07,93956.0,93955.0,2.29016515]
[1740961653421,1e-07,93956.0,93955.0,2.30067618]
[1740961653847,1e-07,93956.0,93955.0,1.66665]
[1740961654243,1e-07,93956.0,93955.0,1.65965]
[1740961654648,1e-07,93956.0,93955.0,1.507]
[1740961655328,0.1596491,93956.0,93955.0,1.507]
[1740961655569,0.1596491,93956.0,93955.0,1.48099999]
[1740961656519,0.1596491,93956.0,93955.0,1.47399999]
[1740961656806,0.1596491,93956.0,93955.0,1.48099999]
[1740961657338,0.2368491,93956.0,93955.0,1.48099999]
[1740961657949,0.2368491,93956.0,93955.0,0.007]
[1740961658154,0.212869,93955.0,93926.0,0.509933]
[1740961658352,0.00186272,93954.0,93926.0,0.297]
[1740961658565,0.00186272,93954.0,93937.0,1.5]
[1740961658774,0.212872,93953.0,93937.0,1.5]
[1740961658972,0.00186272,93952.0,93937.0,1.5]
[1740961659319,0.159659,93950.0,93942.0,0.159672]
[1740961659450,0.159657,93951.0,93942.0,0.159672]
[1740961659654,0.21473572,93953.0,93942.0,0.159672]
[1740961659858,0.2378491,93956.0,93955.0,0.007]
[1740961660277,0.159668,93945.0,93939.0,0.212902]
[1740961660443,0.159666,93946.0,93941.0,0.159674]
[1740961660653,0.001,93951.0,93943.0,0.212895]
[1740961660868,0.212879,93950.0,93942.0,0.007]
[1740961661069,1e-07,93956.0,93938.0,0.159678]
[1740961661070,0.212881,93949.0,93938.0,0.159678]
[1740961661481,0.001,93945.0,93939.0,0.007]
[1740961661779,0.159676,93940.0,93939.0,0.007]
[1740961662048,0.242876,93940.0,93939.0,0.007]
[1740961663017,0.1597,93926.0,93923.0,0.000213]
[1740961663214,0.159703,93924.0,93923.0,0.000213]
[1740961664201,0.159703,93924.0,93923.0,0.00033385]
[1740961664848,0.17051765,93924.0,93923.0,0.00333385]
[1740961665047,0.17151765,93924.0,93923.0,0.00333385]
[1740961665471,0.213938,93924.0,93908.0,0.19030784]
[1740961665682,0.001,93924.0,93923.0,0.159705]
[1740961666236,0.0753,93948.0,93910.0,0.0806]
[1740961666457,0.212876,93951.0,93911.0,0.3271]
[1740961666766,0.001,93924.0,93923.0,0.159705]
[1740961667112,0.3,93948.0,93935.0,0.159683]
[1740961667344,0.3,93948.0,93934.0,0.159685]
[1740961667345,0.001,93948.0,93934.0,0.159685]
[1740961667806,0.159678,93939.0,93924.0,0.212938]
[1740961668048,0.159683,93936.0,93921.0,0.010834]
[1740961668318,0.159683,93936.0,93918.0,0.23456768]
[1740961668319,0.159683,93936.0,93935.0,1.507]
[1740961668774,0.212891,93945.0,93935.0,1.507]
[1740961668775,0.3753,93957.0,93935.0,1.507]
[1740961669020,0.159671,93943.0,93936.0,0.159683]
[1740961669247,0.01338408,93948.0,93935.0,1.507]
[1740961669493,0.001,93948.0,93947.0,0.159664]
[1740961669702,0.00230983,93956.0,93927.0,0.0479]
[1740961669858,0.30230983,93956.0,93947.0,1.5]
[1740961670060,0.30230983,93956.0,93947.0,1.499]
[1740961670061,0.3004471,93956.0,93947.0,1.499]
[1740961670318,0.212872,93954.0,93947.0,1.499]
[1740961670462,0.0004471,93956.0,93947.0,1.499]
[1740961670667,0.1600971,93956.0,93950.0,0.159658]
[1740961670865,0.001,93948.0,93947.0,1.506]
[1740961671296,0.159662,93948.0,93947.0,1.47299999]
[1740961671718,0.159662,93948.0,93947.0,1.47999999]
[1740961672402,0.159662,93948.0,93947.0,0.007]
[1740961672923,0.00186293,93949.0,93928.0,0.3271]
[1740961673126,0.0808,93948.0,93928.0,0.3271]
[1740961673325,0.00186307,93947.0,93928.0,0.3271]
[1740961673910,0.159679,93939.0,93933.0,0.159688]
[1740961674114,0.159679,93939.0,93932.0,0.159689]
[1740961674336,0.159679,93939.0,93930.0,0.212924]
[1740961674558,0.159683,93936.0,93929.0,0.159695]
[1740961674848,0.15967,93944.0,93937.0,0.15968]
[1740961675000,0.212889,93946.0,93935.0,0.159683]
[1740961675202,0.159674,93942.0,93935.0,0.159683]
[1740961675401,0.0808,93948.0,93929.0,0.212926]
[1740961675600,0.00186289,93947.0,93920.0,0.09502795]
[1740961675813,0.159669,93944.0,93937.0,0.15968]
[1740961676014,0.00044731,93948.0,93922.0,0.212942]
[1740961676219,0.001,93939.0,93938.0,0.159679]
[1740961676683,0.00044731,93948.0,93947.0,0.159664]
[1740961676910,0.00044731,93948.0,93932.0,0.212919]
[1740961677130,0.001,93944.0,93937.0,0.005]
[1740961677242,0.159679,93938.0,93937.0,0.005]
[1740961677442,0.00044731,93948.0,93931.0,0.0494]
[1740961677896,0.00144731,93948.0,93947.0,0.005]
[1740961678139,0.37399431,93948.0,93947.0,0.005]
[1740961678343,0.16110931,93948.0,93947.0,0.005]
[1740961678553,0.16297219,93948.0,93947.0,1.505]
[1740961678682,0.00144731,93948.0,93947.0,1.505]
[1740961679119,0.16110931,93948.0,93947.0,1.5]
[1740961679335,0.16010931,93948.0,93947.0,1.5]
[1740961679578,0.00144731,93948.0,93947.0,1.5]
[1740961680023,0.16010931,93948.0,93947.0,1.5]
[1740961680183,0.00044731,93948.0,93947.0,1.5]
[1740961680371,0.00144731,93948.0,93947.0,1.48099999]
[1740961680570,0.00144731,93948.0,93947.0,1.64066399]
[1740961680768,0.00144731,93948.0,93947.0,1.48099999]
[1740961680990,0.16110931,93948.0,93947.0,1.48099999]
[1740961681537,0.00144731,93948.0,93947.0,1.48099999]
[1740961682690,0.16110931,93948.0,93947.0,1.48099999]
[1740961683114,0.16297206,93948.0,93947.0,0.007]
[1740961683400,0.24410931,93948.0,93947.0,0.007]
[1740961684934,0.00144731,93948.0,93947.0,0.007]
[1740961685138,0.16110931,93948.0,93947.0,0.007]
[1740961685333,0.00144731,93948.0,93922.0,0.30809999]
[1740961685576,0.00144731,93948.0,93922.0,0.52104099]
[1740961685837,0.00144731,93948.0,93947.0,0.159664]
[1740961686042,0.00144731,93948.0,93931.0,0.21292]
[1740961686243,0.00044731,93948.0,93922.0,0.30809999]
[1740961686544,0.15968,93938.0,93933.0,0.159686]
[1740961686763,0.212901,93940.0,93928.0,0.212928]
[1740961687130,0.00144731,93948.0,93922.0,0.31409999]
[1740961687332,0.0766,93947.0,93912.0,0.01062152]
[1740961687446,0.372554,93946.0,93921.0,0.159708]
[1740961687646,0.159681,93937.0,93933.0,0.006]
[1740961687850,0.159686,93934.0,93933.0,0.006]
[1740961688090,0.00186313,93934.0,93915.0,0.212957]
[1740961688291,0.00186314,93946.0,93923.0,0.159704]
[1740961688468,0.00186314,93946.0,93934.0,1.5]
[1740961688805,0.159684,93935.0,93934.0,1.5]
[1740961689215,0.212907,93938.0,93934.0,1.5]
[1740961689371,0.15968,93938.0,93934.0,1.5]
[1740961689577,0.159682,93937.0,93930.0,0.159692]
[1740961689777,0.159682,93937.0,93928.0,0.212927]
[1740961689778,0.21289,93945.0,93918.0,0.0468]
[1740961689964,0.159681,93937.0,93931.0,0.15969]
[1740961690167,0.00231025,93948.0,93936.0,1.499]
[1740961690539,0.159685,93935.0,93930.0,0.159693]
[1740961690863,0.00044731,93948.0,93925.0,0.212935]
[1740961691077,0.001,93945.0,93918.0,0.0468]
[1740961691476,0.212922,93931.0,93918.0,0.0468]
[1740961691680,0.002863,93945.0,93918.0,0.0468]
[1740961692130,0.3,93943.0,93907.0,0.0469]
[1740961692334,0.15969,93932.0,93907.0,0.0469]
[1740961692542,0.159686,93934.0,93929.0,0.159693]
[1740961692806,0.159674,93941.0,93927.0,0.21293]
[1740961693008,0.001,93935.0,93934.0,0.159686]
[1740961693651,0.16010931,93948.0,93932.0,0.212918]
[1740961693868,0.00044731,93948.0,93930.0,0.0483]
[1740961694045,0.00044731,93948.0,93933.0,0.159688]
[1740961694046,0.001,93934.0,93933.0,0.159688]
[1740961694592,0.001,93934.0,93930.0,0.0483]
[1740961694805,0.001,93934.0,93933.0,0.159688]
[1740961695367,0.001,93934.0,93933.0,0.13368799]
[1740961695572,0.001,93934.0,93930.0,0.0483]
[1740961695771,0.001,93934.0,93930.0,0.207993]
[1740961696092,0.159691,93932.0,93930.0,0.0483]
[1740961696622,0.212885,93947.0,93930.0,0.0483]
[1740961696896,0.00044731,93948.0,93930.0,0.0483]
[1740961697280,0.001,93932.0,93930.0,0.0483]
[1740961697461,0.159706,93922.0,93921.0,0.03192907]
[1740961698043,0.3,93946.0,93930.0,0.001]
[1740961698250,0.159691,93931.0,93930.0,0.001]
[1740961699135,0.159691,93931.0,93930.0,0.001213]
[1740961699332,0.212918,93933.0,93930.0,0.001213]
[1740961699541,0.159691,93931.0,93930.0,0.000213]
[1740961699753,0.159696,93928.0,93927.0,1.499213]
[1740961700411,0.159696,93928.0,93927.0,1.47321299]
[1740961701113,0.159696,93929.0,93927.0,1.47321299]
[1740961701295,0.001,93928.0,93927.0,1.47421299]
[1740961701939,0.001,93928.0,93927.0,1.63391099]
[1740961702417,0.001,93928.0,93927.0,1.68291099]
[1740961703089,0.159678,93939.0,93933.0,0.159686]
[1740961703378,0.001,93928.0,93927.0,1.52421299]
[1740961703528,0.001,93928.0,93927.0,1.68391099]
[1740961703726,0.159682,93937.0,93927.0,1.52221299]
[1740961703929,0.212897,93942.0,93927.0,0.049]
[1740961704130,0.212888,93946.0,93939.0,0.159677]
[1740961704444,0.159671,93943.0,93942.0,1.5]
[1740961704873,0.00044731,93948.0,93942.0,1.5]
[1740961705081,0.00044731,93948.0,93944.0,0.159668]
[1740961705281,0.00044731,93948.0,93935.0,0.212912]
[1740961705481,0.00044731,93948.0,93946.0,0.13366499]
[1740961705682,0.00044731,93948.0,93947.0,0.159664]
[1740961706134,0.00044731,93948.0,93945.0,0.159666]
[1740961706277,0.00044731,93948.0,93940.0,0.212901]
[1740961706483,0.001,93943.0,93942.0,0.002]
[1740961706703,0.001,93943.0,93942.0,0.161672]
[1740961706937,0.001,93943.0,93941.0,0.159674]
[1740961707244,0.00044731,93948.0,93942.0,0.159671]
[1740961707534,0.00144731,93948.0,93945.0,0.002]
[1740961707893,0.00044731,93948.0,93943.0,0.15967]
[1740961708095,0.001,93943.0,93941.0,0.002]
[1740961708321,0.001,93943.0,93942.0,0.372569]
[1740961708482,0.001,93943.0,93942.0,1.872569]
[1740961709524,0.00044731,93948.0,93947.0,0.159664]
[1740961709715,0.00044731,93948.0,93947.0,0.288864]
[1740961709893,0.00144731,93948.0,93947.0,0.288864]
[1740961710106,0.00144731,93948.0,93947.0,2.19770102]
[1740961710327,0.00044731,93948.0,93947.0,2.70580101]
[1740961710585,0.00044731,93948.0,93947.0,2.50580101]
[1740961710705,0.00144731,93948.0,93947.0,2.70780101]
[1740961711118,0.00044731,93948.0,93947.0,2.70580101]
[1740961711325,0.00044731,93948.0,93947.0,2.70780101]
[1740961711647,0.00044731,93948.0,93947.0,2.71571902]
[1740961711648,0.00144731,93948.0,93947.0,2.71571902]
[1740961712069,0.00144731,93948.0,93947.0,2.7256812]
[1740961712276,0.00044773,93975.0,93955.0,0.58515]
[1740961712460,0.00044773,93975.0,93955.0,1.00208701]
[1740961712461,0.00055436,93956.0,93955.0,1.00208701]
[1740961712941,0.00055436,93956.0,93955.0,2.50208701]
[1740961713529,0.00055436,93956.0,93955.0,2.51204919]
[1740961714158,0.00055436,93956.0,93955.0,2.51904919]
[1740961717842,0.00055436,93956.0,93955.0,2.41021217]
[1740961718041,0.00055436,93956.0,93955.0,2.51904919]
[1740961719597,3.6e-07,93956.0,93955.0,2.51904919]
[1740961719835,0.00044773,93975.0,93966.0,0.659632]
[1740961720059,0.00540308,93967.0,93966.0,1.34565502]
[1740961720290,0.00540308,93967.0,93966.0,1.65375501]
[1740961720487,8e-08,93967.0,93966.0,3.20375501]
[1740961720686,8e-08,93967.0,93966.0,2.75973119]
[1740961720893,0.00100008,93967.0,93966.0,2.76673119]
[1740961721090,0.00100008,93967.0,93966.0,3.50953419]
[1740961721649,0.00100008,93967.0,93966.0,3.04029819]
[1740961721788,0.00100008,93967.0,93966.0,2.93759177]
[1740961722118,0.00100008,93967.0,93966.0,2.92762959]
[1740961722323,8e-08,93967.0,93966.0,2.72062959]
[1740961722481,0.00100008,93967.0,93966.0,2.72762959]
[1740961723363,0.00100008,93967.0,93966.0,2.94361059]
[1740961723503,0.00100008,93967.0,93966.0,2.83735059]
[1740961723698,0.00100008,93967.0,93966.0,2.72762959]
[1740961724116,0.00144739,93967.0,93966.0,2.72762959]
[1740961724326,0.00138855,93967.0,93966.0,2.7375416]
[1740961724737,0.00138855,93967.0,93966.0,2.51978458]
[1740961724970,0.00138855,93967.0,93966.0,2.44298458]
[1740961726076,0.00138855,93967.0,93966.0,2.00550458]
[1740961728077,0.00456379,93981.0,93966.0,1.84587258]
[1740961728218,0.00456379,93981.0,93966.0,0.34587258]
[1740961728614,0.00456379,93981.0,93980.0,1.5]
[1740961728823,0.00456379,93981.0,93980.0,1.659608]
[1740961729029,0.00456379,93981.0,93980.0,2.50484501]
[1740961729269,0.00456379,93981.0,93980.0,2.51573263]
[1740961729467,0.00556379,93981.0,93980.0,2.51573263]
[1740961730061,0.00456379,93981.0,93980.0,2.52564464]
[1740961730259,0.00556379,93981.0,93980.0,2.53264464]
[1740961731458,0.00456379,93981.0,93980.0,2.52564464]
[1740961732002,0.00456379,93981.0,93980.0,2.52273263]
[1740961732684,0.00447059,93981.0,93980.0,2.44303263]
[1740961732814,0.00447059,93981.0,93980.0,2.33419561]
[1740961733244,0.00447059,93981.0,93980.0,2.44303263]
[1740961734000,0.00447059,93981.0,93980.0,2.33419561]
[1740961734779,0.00447059,93981.0,93980.0,2.28559561]
[1740961735016,0.00447059,93981.0,93980.0,1.507]
[1740961735251,0.00447059,93981.0,93980.0,1.666608]
[1740961735943,0.00491769,93981.0,93980.0,1.67654351]
[1740961736192,0.00491769,93981.0,93980.0,1.66954351]
[1740961736426,0.00491769,93981.0,93980.0,1.67654351]
[1740961737118,0.16452369,93981.0,93980.0,1.51693551]
[1740961737371,0.00491769,93981.0,93980.0,1.51693551]
[1740961737598,0.00491769,93981.0,93980.0,1.67654351]
[1740961737827,0.00491769,93981.0,93980.0,1.66954351]
[1740961738048,0.00591769,93981.0,93980.0,1.67654351]
[1740961740477,0.00591769,93981.0,93980.0,1.51693551]
[1740961740704,0.00591769,93981.0,93980.0,1.6964693]
[1740961742615,0.00591769,93981.0,93980.0,2.0460693]
[1740961742970,0.00591769,93981.0,93980.0,2.46300631]
[1740961743561,0.00044815,93995.0,93994.0,0.159584]
[1740961743716,0.00056902,93995.0,93994.0,0.46768399]
[1740961743919,0.00056902,93995.0,93994.0,0.57652101]
[1740961744118,0.00056902,93995.0,93994.0,2.07652101]
[1740961744737,0.00056902,93995.0,93994.0,2.37652101]
[1740961744938,0.00056902,93995.0,93994.0,2.50512101]
[1740961745143,0.00056902,93995.0,93994.0,2.5320468]
[1740961745534,0.00056902,93995.0,93994.0,2.53314807]
[1740961746519,0.00056902,93995.0,93994.0,2.54014807]
[1740961747397,0.00056902,93995.0,93994.0,2.56177706]
[1740961749861,7.5e-07,94000.0,93999.0,0.659576]
[1740961750106,0.00044752,94012.0,94009.0,0.359559]
[1740961750429,0.00044752,94012.0,94009.0,0.54689602]
[1740961750643,0.00044752,94012.0,94009.0,2.04689602]
[1740961751191,0.00044752,94012.0,94009.0,2.34689602]
[1740961751610,0.005,94024.0,94009.0,2.34689602]
[1740961751611,4.3e-07,94018.0,94017.0,0.5]
[1740961751871,4.3e-07,94018.0,94017.0,1.25418201]
[1740961752327,4.3e-07,94018.0,94017.0,2.75418201]
[1740961753352,0.005,94024.0,94018.0,1.14421]
[1740961753583,0.005,94024.0,94018.0,1.25304702]
[1740961754287,0.005,94024.0,94018.0,1.11970302]
[1740961754864,1e-06,94019.0,94018.0,1.11970302]
[1740961755468,1e-06,94019.0,94018.0,1.12670302]
[1740961758267,1e-06,94019.0,94018.0,1.13467752]
[1740961758477,1e-06,94019.0,94018.0,2.61177152]
[1740961758622,1e-06,94019.0,94018.0,2.91987151]
[1740961758838,0.00484427,94024.0,94023.0,0.659535]
[1740961759059,0.0049651,94024.0,94023.0,0.87549902]
[1740961759255,0.0049651,94024.0,94023.0,0.88617834]
[1740961759457,0.0049651,94024.0,94023.0,2.42954334]
[1740961759657,0.0049651,94024.0,94023.0,2.27905134]
[1740961760319,0.0049651,94024.0,94023.0,2.49010334]
[1740961760532,0.0051782,94024.0,94023.0,2.49010334]
[1740961760941,0.0051782,94024.0,94023.0,2.49710334]
[1740961761903,0.0051782,94024.0,94023.0,2.49706334]
[1740961762306,0.0051782,94024.0,94023.0,2.37685134]
[1740961762731,0.0051782,94024.0,94023.0,2.50288334]
[1740961763140,0.0051782,94024.0,94023.0,2.37685134]
[1740961763341,0.0051782,94024.0,94023.0,2.49919434]
[1740961764064,0.0051782,94024.0,94023.0,2.37685134]
[1740961764690,0.0051782,94024.0,94023.0,2.68495133]
[1740961765043,0.0051782,94024.0,94023.0,2.78814933]
[1740961766597,0.0051782,94024.0,94023.0,2.68495133]
[1740961771282,0.0051782,94024.0,94023.0,2.77998044]
[1740961771939,0.005,94038.0,94027.0,0.459528]
[1740961772169,0.005,94038.0,94027.0,0.56836502]
[1740961772598,0.005,94038.0,94027.0,2.06836502]
[1740961773239,0.005,94038.0,94027.0,2.07536502]
[1740961773878,0.005,94038.0,94027.0,2.06836502]
[1740961774380,0.005,94038.0,94027.0,2.07536502]
[1740961774816,0.005,94038.0,94027.0,2.06836502]
[1740961776096,0.005,94038.0,94027.0,2.07536502]
[1740961776588,0.005,94038.0,94027.0,2.37646501]
[1740961776841,0.005,94038.0,94027.0,2.38346501]
[1740961777647,0.005,94038.0,94027.0,2.37646501]
[1740961778049,0.005,94038.0,94027.0,2.38346501]
[1740961778265,0.005,94038.0,94027.0,2.60479255]
[1740961778467,0.005,94038.0,94027.0,3.26846555]
[1740961778858,0.005,94038.0,94027.0,3.26747549]
[1740961779095,0.005,94038.0,94027.0,3.26047549]
[1740961779332,0.005,94038.0,94032.0,0.45952]
[1740961779574,0.005,94038.0,94032.0,0.56835702]
[1740961780045,0.005,94038.0,94032.0,2.06835702]
[1740961780543,0.005,94038.0,94032.0,2.22179702]
[1740961780979,0.005,94038.0,94032.0,2.22879702]
[1740961782427,0.005,94038.0,94032.0,2.53689701]
[1740961783692,0.005,94038.0,94032.0,2.62757701]
[1740961784692,0.005,94038.0,94032.0,2.66081908]
[1740961787523,0.00044731,94050.0,94049.0,0.159491]
[1740961788407,0.00044731,94050.0,94049.0,1.659491]
[1740961788603,0.00044731,94050.0,94049.0,1.666491]
[1740961788829,0.00044731,94050.0,94049.0,1.507]
[1740961789066,0.28643631,94050.0,94049.0,1.507]
[1740961789715,0.12694731,94050.0,94049.0,1.666491]
[1740961790030,0.12694731,94050.0,94049.0,1.659491]
[1740961790173,0.07994731,94050.0,94049.0,1.666491]
[1740961790585,0.07994731,94050.0,94049.0,1.507]
[1740961791528,0.23943631,94050.0,94049.0,1.47399999]
[1740961791862,0.23943631,94050.0,94049.0,1.48099999]
[1740961792610,0.23943631,94050.0,94049.0,1.47399999]
[1740961792821,0.07994731,94050.0,94049.0,1.48099999]
[1740961793076,0.07994731,94050.0,94049.0,1.64049099]
[1740961793280,0.00044731,94050.0,94049.0,1.63349099]
[1740961794571,0.00044731,94050.0,94049.0,1.64049099]
[1740961795111,0.00044731,94050.0,94049.0,1.63349099]
[1740961795544,0.00044731,94050.0,94049.0,1.61449098]
[1740961796079,0.00044731,94050.0,94049.0,1.60749098]
[1740961796453,0.00044731,94050.0,94049.0,1.45499998]
[1740961796995,0.00044731,94050.0,94049.0,1.61449098]
[1740961798237,0.00044731,94050.0,94049.0,1.60749098]
[1740961798615,0.00044731,94050.0,94049.0,1.61449098]
[1740961799015,0.00044731,94050.0,94049.0,1.60749098]
[1740961799427,0.00044731,94050.0,94049.0,1.61449098]
[1740961799909,0.00044731,94050.0,94049.0,1.60749098]
[1740961800314,0.00044731,94050.0,94049.0,1.61747075]
[1740961800539,0.00044731,94050.0,94049.0,1.62447075]
[1740961800759,0.00044731,94050.0,94049.0,1.43897974]
[1740961800964,0.28553631,94050.0,94049.0,1.43897974]
[1740961801723,0.28553631,94050.0,94049.0,1.42899997]
[1740961802088,0.28553631,94050.0,94049.0,1.42199997]
[1740961802676,0.28553631,94050.0,94049.0,1.42899997]
[1740961802851,0.07744731,94050.0,94049.0,1.58849097]